bitfinex-derivatives/quotes_SOLF0:USTF0_20250907
["timestamp","ask_amount","ask_price","bid_price","bid_amount"]
[1757252156029,7.47,203.78,203.71,4.52678249]
[1757252156233,7.47,203.78,203.68,4.4179]
[1757252156234,7.47,203.78,203.72,4.52678249]
[1757252156430,7.47,203.78,203.73,4.52644293]
[1757252156635,7.47,203.79,203.68,4.4179]
[1757252156836,7.47,203.79,203.69,4.52644293]
[1757252157036,7.47,203.79,203.7,4.52644293]
[1757252157338,7.47,203.79,203.71,4.52644293]
[1757252157529,7.47,203.79,203.72,4.52644293]
[1757252157838,7.47,203.79,203.73,4.52644293]
[1757252158139,7.47,203.79,203.68,4.4179]
[1757252158338,7.47,203.79,203.69,4.52586068]
[1757252158537,7.47,203.79,203.7,4.52586068]
[1757252158737,7.47,203.79,203.71,4.52586068]
[1757252158936,7.47,203.79,203.72,4.52586068]
[1757252159136,7.47,203.79,203.73,4.52586068]
[1757252159337,7.47,203.79,203.68,4.4179]
[1757252159537,7.47,203.79,203.69,4.52590899]
[1757252159734,7.47,203.79,203.7,4.52590899]
[1757252159937,7.47,203.79,203.71,4.52590899]
[1757252160138,7.47,203.79,203.66,4.4185]
[1757252160340,7.47,203.79,203.67,4.52619381]
[1757252160540,7.47,203.79,203.68,4.52619381]
[1757252160741,7.47,203.79,203.69,4.52619381]
[1757252161041,7.47,203.79,203.7,4.52619381]
[1757252161244,7.47,203.79,203.71,4.52619381]
[1757252161436,7.47,203.77,203.66,4.4185]
[1757252161632,7.47,203.77,203.67,4.52631101]
[1757252161840,7.47,203.77,203.68,4.52631101]
[1757252162034,7.47,203.77,203.69,4.52631101]
[1757252162234,7.47,203.77,203.7,4.52631101]
[1757252162443,7.47,203.77,203.71,4.52631101]
[1757252162639,7.47,203.76,203.72,4.52631101]
[1757252162944,7.47,203.76,203.73,4.52631101]
[1757252163237,7.47,203.76,203.74,4.52631101]
[1757252163439,7.47,203.76,203.7,4.4175]
[1757252163646,7.47,203.76,203.71,4.52539398]
[1757252163844,7.47,203.76,203.72,4.52539398]
[1757252164045,7.47,203.76,203.73,4.52539398]
[1757252164238,7.47,203.76,203.74,4.52539398]
[1757252164442,7.47,203.76,203.7,4.4175]
[1757252164643,7.47,203.76,203.71,4.52528187]
[1757252164847,7.47,203.79,203.73,0.03]
[1757252165047,76.5972731,203.8,203.74,4.52528187]
[1757252165243,8.16,203.79,203.72,0.03]
[1757252165444,8.16,203.79,203.73,4.52513272]
[1757252165746,8.16,203.79,203.74,4.52513272]
[1757252165945,8.16,203.79,203.73,0.03]
[1757252166141,8.16,203.79,203.74,4.52513272]
[1757252166348,8.16,203.79,203.73,0.03]
[1757252166544,8.16,203.79,203.74,4.52508592]
[1757252166746,8.16,203.79,203.73,0.03]
[1757252167053,8.16,203.79,203.74,4.52508592]
[1757252167352,8.16,203.79,203.73,0.03]
[1757252167546,76.5972731,203.8,203.74,4.52533557]
[1757252167745,8.16,203.79,203.73,0.03]
[1757252167953,76.5972731,203.8,203.74,4.52533557]
[1757252168145,8.16,203.79,203.72,0.03]
[1757252168346,8.16,203.79,203.73,4.52612691]
[1757252168545,76.5972731,203.8,203.74,4.52612691]
[1757252168747,8.16,203.79,203.73,0.03]
[1757252168947,76.5972731,203.8,203.74,4.52596742]
[1757252169147,8.16,203.79,203.72,0.03]
[1757252169344,8.16,203.79,203.73,4.52688592]
[1757252169549,76.5972731,203.8,203.74,4.52688592]
[1757252169755,8.16,203.79,203.72,0.03]
[1757252169949,8.16,203.79,203.73,4.52674762]
[1757252170149,76.5972731,203.8,203.74,4.52674762]
[1757252170446,8.16,203.79,203.76,0.03]
[1757252170651,8.16,203.79,203.77,4.55709217]
[1757252170951,8.16,203.79,203.77,0.03]
[1757252172253,8.16,203.85,203.69,0.03]
[1757252172456,8.16,203.85,203.71,0.03]
[1757252172753,8.16,203.85,203.73,0.03]
[1757252172947,8.16,203.85,203.74,4.52645164]
[1757252173152,8.16,203.85,203.75,4.55645164]
[1757252173452,8.16,203.85,203.76,4.52645164]
[1757252173654,8.16,203.85,203.77,4.52645164]
[1757252173955,8.16,203.85,203.75,0.03]
[1757252174155,8.16,203.85,203.76,4.56172576]
[1757252174357,8.16,203.85,203.77,4.56172576]
[1757252174551,8.16,203.85,203.75,0.03]
[1757252174752,8.16,203.85,203.76,4.56101733]
[1757252174953,8.16,203.85,203.77,4.56101733]
[1757252175253,8.16,203.85,203.75,0.03]
[1757252175451,8.16,203.85,203.76,4.56037489]
[1757252175652,8.16,203.85,203.77,4.56037489]
[1757252175951,8.16,203.85,203.75,0.03]
[1757252176152,8.16,203.85,203.76,4.56050021]
[1757252176352,8.16,203.85,203.75,0.03]
[1757252176550,8.16,203.85,203.76,4.56004625]
[1757252176751,8.16,203.85,203.75,0.03]
[1757252177046,8.16,203.85,203.76,4.56004625]
[1757252177253,8.16,203.85,203.75,0.03]
[1757252177455,8.16,203.85,203.76,4.55823375]
[1757252177756,8.16,203.85,203.75,0.03]
[1757252177956,8.16,203.85,203.76,4.55823375]
[1757252178156,8.16,203.85,203.75,0.03]
[1757252178357,8.16,203.85,203.76,4.55801253]
[1757252178557,8.16,203.85,203.75,0.03]
[1757252178755,8.16,203.85,203.76,4.55778298]
[1757252178956,8.16,203.85,203.75,0.03]
[1757252179156,8.16,203.85,203.76,4.55778298]
[1757252179354,8.16,203.85,203.75,0.03]
[1757252179556,8.16,203.85,203.76,4.55741347]
[1757252179858,8.16,203.85,203.75,0.03]
[1757252180053,8.16,203.85,203.76,4.55741347]
[1757252180260,8.16,203.85,203.75,0.03]
[1757252180457,8.16,203.85,203.76,4.55715018]
[1757252180659,8.16,203.85,203.75,0.03]
[1757252180855,8.16,203.85,203.76,4.55715018]
[1757252181056,8.16,203.85,203.75,0.03]
[1757252181256,8.16,203.85,203.76,4.55727775]
[1757252181461,8.16,203.85,203.75,0.03]
[1757252181762,8.16,203.85,203.76,4.55716118]
[1757252181960,8.16,203.85,203.75,0.03]
[1757252182161,8.16,203.85,203.76,4.55716118]
[1757252182455,8.16,203.85,203.75,0.03]
[1757252182666,8.16,203.85,203.76,4.55745378]
[1757252182860,8.16,203.85,203.75,0.03]
[1757252183053,8.16,203.85,203.76,4.55745378]
[1757252183259,8.16,203.85,203.75,0.03]
[1757252183566,8.16,203.85,203.76,4.55794751]
[1757252183764,8.16,203.85,203.75,0.03]
[1757252183964,8.16,203.85,203.76,4.55794751]
[1757252184262,8.16,203.85,203.75,0.03]
[1757252184463,8.16,203.85,203.76,4.55855287]
[1757252184660,8.16,203.85,203.75,0.03]
[1757252184860,8.16,203.85,203.76,4.55855287]
[1757252185056,8.16,203.85,203.77,4.55930307]
[1757252185361,8.16,203.85,203.75,0.03]
[1757252185560,8.16,203.85,203.76,4.55928029]
[1757252185766,8.16,203.85,203.77,4.55928029]
[1757252186054,8.16,203.85,203.75,0.03]
[1757252186265,8.16,203.85,203.76,4.56015326]
[1757252186559,8.16,203.85,203.77,4.56015326]
[1757252186752,8.16,203.85,203.75,0.03]
[1757252186957,8.16,203.85,203.76,4.56014413]
[1757252187157,8.16,203.85,203.77,4.56014413]
[1757252187364,8.16,203.85,203.75,0.03]
[1757252187563,8.16,203.85,203.76,4.56116454]
[1757252187764,8.16,203.85,203.77,4.56116454]
[1757252188064,8.16,203.85,203.75,0.03]
[1757252188268,8.16,203.85,203.76,4.56236542]
[1757252188467,8.16,203.85,203.77,4.56236542]
[1757252188667,8.16,203.85,203.75,0.03]
[1757252188868,8.16,203.85,203.76,4.56237084]
[1757252189068,8.16,203.85,203.77,4.56237084]
[1757252189269,8.16,203.85,203.75,0.03]
[1757252189568,8.16,203.85,203.76,4.56292383]
[1757252189770,8.16,203.85,203.77,4.56292383]
[1757252189968,8.16,203.85,203.75,0.03]
[1757252190170,16.34467588,203.85,203.76,4.56292383]
[1757252190363,16.34467588,203.85,203.77,4.56292383]
[1757252190563,16.34467588,203.85,203.75,0.03]
[1757252190765,16.34467588,203.85,203.76,4.56357389]
[1757252190964,16.34467588,203.85,203.77,4.56357389]
[1757252191165,16.34467588,203.85,203.75,0.03]
[1757252191366,8.18467588,203.84,203.71,0.03]
[1757252191669,105.84,203.86,203.72,4.56447261]
[1757252191670,8.16,203.82,203.72,4.56447261]
[1757252191870,8.16,203.82,203.73,4.56447261]
[1757252192069,8.16,203.82,203.74,4.56447261]
[1757252192269,8.16,203.82,203.75,4.56447261]
[1757252192470,8.16,203.82,203.71,0.03]
[1757252192771,8.16,203.82,203.72,4.56506742]
[1757252193070,8.16,203.82,203.73,4.56506742]
[1757252193266,8.16,203.82,203.74,4.56506742]
[1757252193471,8.16,203.82,203.75,4.56506742]
[1757252193773,8.16,203.82,203.76,4.56506742]
[1757252193972,16.34467588,203.82,203.71,0.03]
[1757252194169,16.34467588,203.82,203.72,4.56578582]
[1757252194372,16.34467588,203.82,203.73,4.56578582]
[1757252194573,16.34467588,203.82,203.74,4.56578582]
[1757252194768,16.34467588,203.82,203.75,4.56578582]
[1757252194969,16.34467588,203.82,203.76,4.56578582]
[1757252195173,16.34467588,203.82,203.7,3.87414551]
[1757252195376,16.34467588,203.82,203.71,4.56670036]
[1757252195572,16.34467588,203.82,203.72,4.56670036]
[1757252195774,16.34467588,203.82,203.73,4.56670036]
[1757252196075,16.34467588,203.82,203.74,4.56670036]
[1757252196275,16.34467588,203.82,203.75,4.56670036]
[1757252196472,16.34467588,203.82,203.76,4.56670036]
[1757252196674,16.34467588,203.82,203.7,4.4175]
[1757252196975,16.34467588,203.82,203.71,4.56713759]
[1757252197174,16.34467588,203.82,203.7,4.4175]
[1757252197175,16.34467588,203.82,203.72,4.56713759]
[1757252197378,16.34467588,203.82,203.73,4.56713759]
[1757252197578,16.34467588,203.82,203.74,4.56713759]
[1757252197776,16.34467588,203.82,203.75,4.56713759]
[1757252197981,16.34467588,203.82,203.76,4.56713759]
[1757252198276,16.34467588,203.82,203.7,4.4175]
[1757252198478,16.34467588,203.82,203.71,4.56788469]
[1757252198676,16.34467588,203.82,203.72,4.56788469]
[1757252198876,16.34467588,203.82,203.73,4.56788469]
[1757252199077,16.34467588,203.82,203.74,4.56788469]
[1757252199277,16.34467588,203.82,203.75,4.56788469]
[1757252199479,16.34467588,203.82,203.76,4.56788469]
[1757252199772,16.34467588,203.82,203.71,4.4173]
[1757252199773,8.16,203.82,203.77,4.56788469]
[1757252199978,8.16,203.82,203.67,72.85382388]
[1757252200278,8.16,203.82,203.68,12.57107657]
[1757252200471,8.16,203.82,203.69,8.44385269]
[1757252200770,8.16,203.82,203.7,8.44385269]
[1757252200971,8.16,203.82,203.71,8.44385269]
[1757252201168,8.16,203.82,203.68,4.12722388]
[1757252201169,8.16,203.82,203.72,8.44385269]
[1757252201369,8.16,203.82,203.73,4.56812621]
[1757252201573,8.16,203.82,203.74,4.56812621]
[1757252201876,8.16,203.82,203.75,4.56812621]
[1757252202078,8.16,203.82,203.76,4.56812621]
[1757252202379,7.5,203.83,203.77,4.56812621]
[1757252202678,7.5,203.83,203.78,4.56812621]
[1757252202878,8.18467588,203.84,203.79,4.56812621]
[1757252203082,7.5,203.83,203.73,4.4169]
[1757252203282,7.5,203.83,203.74,4.56928322]
[1757252203483,7.5,203.83,203.75,4.56928322]
[1757252203683,7.5,203.83,203.76,4.56928322]
[1757252203981,7.5,203.83,203.77,4.56928322]
[1757252204183,7.5,203.83,203.78,4.56928322]
[1757252204383,7.5,203.83,203.79,4.56928322]
[1757252204582,7.5,203.83,203.73,4.4169]
[1757252204781,7.5,203.83,203.74,4.56955377]
[1757252204982,7.5,203.83,203.75,4.56955377]
[1757252205185,7.5,203.83,203.76,4.56955377]
[1757252205374,7.5,203.83,203.77,4.56955377]
[1757252205579,7.5,203.83,203.78,4.56955377]
[1757252205778,7.5,203.83,203.79,4.56955377]
[1757252205984,7.5,203.83,203.73,4.4169]
[1757252206185,7.5,203.83,203.74,4.56958159]
[1757252206385,7.5,203.83,203.75,4.56958159]
[1757252206584,7.5,203.83,203.76,4.56958159]
[1757252206783,7.5,203.83,203.77,4.56958159]
[1757252207084,7.5,203.83,203.78,4.56958159]
[1757252207282,7.5,203.83,203.79,4.56958159]
[1757252207491,7.5,203.83,203.73,4.4169]
[1757252207687,7.5,203.83,203.74,8.44531382]
[1757252207988,7.5,203.83,203.75,4.58380331]
[1757252208177,7.5,203.83,203.76,4.58380331]
[1757252208377,7.5,203.83,203.77,4.58380331]
[1757252208583,7.5,203.83,203.78,4.58380331]
[1757252208783,7.5,203.83,203.79,4.58380331]
[1757252208981,7.5,203.83,203.73,4.4169]
[1757252209286,7.5,203.83,203.74,8.44564502]
[1757252209486,7.5,203.83,203.75,4.58398569]
[1757252209789,7.5,203.83,203.76,4.58398569]
[1757252210086,7.5,203.83,203.77,4.58398569]
[1757252210278,7.5,203.83,203.78,4.58398569]
[1757252210483,7.5,203.83,203.79,4.58398569]
[1757252210684,7.5,203.83,203.73,4.4169]
[1757252210986,7.5,203.83,203.74,8.44352218]
[1757252211186,7.5,203.83,203.75,4.58434332]
[1757252211388,7.5,203.83,203.76,4.58434332]
[1757252211685,7.5,203.83,203.77,4.58434332]
[1757252211881,8.18467588,203.84,203.78,4.58434332]
[1757252212081,7.5,203.83,203.79,4.58434332]
[1757252212280,8.18467588,203.84,203.8,4.58434332]
[1757252212477,7.5,203.83,203.73,4.4169]
[1757252212782,7.5,203.83,203.74,8.44418414]
[1757252212982,7.5,203.83,203.75,4.5847068]
[1757252213278,7.5,203.83,203.76,4.5847068]
[1757252213588,7.5,203.83,203.77,4.5847068]
[1757252213784,7.5,203.83,203.78,4.5847068]
[1757252213986,7.5,203.83,203.79,4.5847068]
[1757252214185,7.5,203.83,203.8,4.5847068]
[1757252214487,7.5,203.83,203.73,4.4169]
[1757252214687,7.5,203.83,203.74,8.44508023]
[1757252214890,7.5,203.83,203.75,4.58519581]
[1757252215077,7.5,203.83,203.76,4.58519581]
[1757252215278,7.5,203.83,203.77,4.58519581]
[1757252215478,7.5,203.83,203.78,4.58519581]
[1757252215782,7.5,203.83,203.79,4.58519581]
[1757252216088,7.5,203.83,203.8,4.58519581]
[1757252216294,7.5,203.83,203.73,4.4169]
[1757252216489,7.5,203.83,203.74,8.44561069]
[1757252216694,7.5,203.83,203.75,4.58548496]
[1757252216883,7.5,203.83,203.76,4.58548496]
[1757252217087,7.5,203.83,203.77,4.58548496]
[1757252217287,7.5,203.83,203.78,4.58548496]
[1757252217486,7.5,203.83,203.79,4.58548496]
[1757252217690,7.5,203.83,203.8,4.58548496]
[1757252217898,7.5,203.83,203.73,4.4169]
[1757252218191,7.5,203.83,203.74,8.44564404]
[1757252218391,7.5,203.83,203.75,4.58550314]
[1757252218587,7.5,203.83,203.73,4.4169]
[1757252218588,7.5,203.83,203.76,4.58550314]
[1757252218786,7.5,203.83,203.77,4.58550314]
[1757252218988,7.5,203.83,203.78,4.58550314]
[1757252219189,7.5,203.83,203.79,4.58550314]
[1757252219389,7.5,203.83,203.8,4.58550314]
[1757252219593,7.5,203.83,203.73,4.4169]
[1757252219784,7.5,203.83,203.74,8.44568983]
[1757252219986,7.5,203.83,203.75,4.58551049]
[1757252220184,7.5,203.83,203.76,4.58551049]
[1757252220386,7.5,203.83,203.77,4.58551049]
[1757252220588,7.5,203.83,203.78,4.58551049]
[1757252220786,7.5,203.83,203.72,4.4171]
[1757252220987,7.5,203.83,203.73,3.86014598]
[1757252221192,7.5,203.83,203.74,3.86014598]
[1757252221397,7.5,203.83,203.72,4.4171]
[1757252221599,7.5,203.83,203.73,3.86011446]
[1757252221794,7.5,203.83,203.74,3.86011446]
[1757252221991,7.5,203.83,203.72,4.4171]
[1757252222195,7.5,203.83,203.73,3.86011447]
[1757252222498,7.5,203.83,203.74,3.86011447]
[1757252222699,7.5,203.83,203.72,4.4171]
[1757252222898,7.5,203.83,203.73,3.86008399]
[1757252223097,7.5,203.83,203.74,3.86008399]
[1757252223298,7.5,203.83,203.72,4.4171]
[1757252223501,7.5,203.83,203.73,3.86005456]
[1757252223698,7.5,203.83,203.74,3.86005456]
[1757252223897,7.5,203.83,203.72,4.4171]
[1757252224201,7.5,203.83,203.73,3.86005621]
[1757252224395,7.5,203.83,203.74,3.86005621]
[1757252224601,7.5,203.83,203.72,4.4171]
[1757252224796,7.5,203.83,203.73,3.86002901]
[1757252225000,7.5,203.83,203.74,3.86002901]
[1757252225202,7.5,203.83,203.72,4.4171]
[1757252225396,7.5,203.83,203.73,3.86006069]
[1757252225592,7.5,203.83,203.74,3.86006069]
[1757252225892,7.5,203.83,203.72,4.4171]
[1757252226096,7.5,203.83,203.73,3.86000363]
[1757252226297,7.5,203.83,203.74,3.86000363]
[1757252226496,7.5,203.83,203.72,4.4171]
[1757252226699,7.5,203.83,203.73,3.86003663]
[1757252226901,7.5,203.83,203.72,4.4171]
[1757252227102,7.5,203.83,203.73,3.86000111]
[1757252227301,7.5,203.83,203.73,4.4169]
[1757252228001,7.5,203.83,203.69,75.94882388]
[1757252228198,7.5,203.83,203.7,3.8599552]
[1757252228398,7.5,203.83,203.71,3.8599552]
[1757252228605,7.5,203.83,203.72,3.8599552]
[1757252228803,7.5,203.83,203.73,8.5584068]
[1757252229004,7.5,203.83,203.74,8.5584068]
[1757252229198,7.5,203.83,203.75,4.6984516]
[1757252229504,7.5,203.83,203.76,4.6984516]
[1757252229806,7.5,203.83,203.77,4.6984516]
[1757252230001,7.5,203.83,203.78,4.6984516]
[1757252230201,7.5,203.83,203.79,4.6984516]
[1757252230501,7.5,203.83,203.8,4.6984516]
[1757252230700,7.5,203.83,203.73,4.4168]
[1757252230896,7.5,203.83,203.74,8.55835619]
[1757252231100,7.5,203.83,203.75,4.69844838]
[1757252231301,7.5,203.83,203.76,4.3988264]
[1757252231500,7.5,203.83,203.77,4.3988264]
[1757252231703,7.5,203.83,203.78,4.3988264]
[1757252232001,7.5,203.83,203.73,4.4168]
[1757252232202,7.5,203.83,203.74,8.25871251]
[1757252232401,7.5,203.83,203.75,4.3988264]
[1757252232603,7.5,203.83,203.76,4.3988264]
[1757252232906,7.5,203.83,203.77,4.3988264]
[1757252233102,7.5,203.83,203.78,4.3988264]
[1757252233306,7.5,203.83,203.73,4.4168]
[1757252233505,7.5,203.83,203.74,8.2648919]
[1757252233705,7.5,203.83,203.75,4.39878111]
[1757252234003,15.68467588,203.83,203.76,4.39878111]
[1757252234204,15.68467588,203.83,203.77,4.39878111]
[1757252234401,15.68467588,203.83,203.73,4.4168]
[1757252234601,15.68467588,203.83,203.74,4.39880441]
[1757252234802,15.68467588,203.83,203.75,4.39880441]
[1757252235003,15.68467588,203.83,203.76,4.39880441]
[1757252235311,15.68467588,203.83,203.77,4.39880441]
[1757252235506,15.68467588,203.83,203.78,4.39880441]
[1757252235706,15.68467588,203.83,203.73,4.4168]
[1757252236006,15.68467588,203.83,203.74,4.39880336]
[1757252236206,7.5,203.83,203.75,4.39880336]
[1757252236408,7.5,203.83,203.76,4.39880336]
[1757252236708,7.5,203.83,203.77,4.39880336]
[1757252237009,7.5,203.83,203.78,4.39880336]
[1757252237209,7.5,203.83,203.73,4.4168]
[1757252237410,7.5,203.83,203.74,4.38590548]
[1757252237708,7.5,203.83,203.75,4.38590548]
[1757252237910,7.5,203.83,203.76,4.38590548]
[1757252238111,7.5,203.83,203.77,4.38590548]
[1757252238310,15.68467588,203.83,203.78,4.38590548]
[1757252238507,7.5,203.83,203.73,4.4168]
[1757252238706,7.5,203.83,203.74,4.38631847]
[1757252238911,15.68467588,203.83,203.75,4.38631847]
[1757252239111,15.68467588,203.83,203.76,4.38631847]
[1757252239308,15.68467588,203.83,203.77,4.38631847]
[1757252239510,15.68467588,203.83,203.78,4.38631847]
[1757252239814,15.68467588,203.83,203.71,4.4173]
[1757252240007,15.68467588,203.83,203.72,8.2610611]
[1757252240212,15.68467588,203.83,203.73,8.2610611]
[1757252240407,15.68467588,203.83,203.74,4.39382291]
[1757252240712,15.68467588,203.83,203.75,4.39382291]
[1757252240911,15.68467588,203.83,203.76,4.39382291]
[1757252241209,15.68467588,203.83,203.77,4.39382291]
[1757252241411,15.68467588,203.83,203.78,4.39382291]
[1757252241613,15.68467588,203.83,203.71,4.4173]
[1757252241809,15.68467588,203.83,203.72,8.263022]
[1757252242010,15.68467588,203.83,203.73,8.263022]
[1757252242211,15.68467588,203.83,203.74,4.39486097]
[1757252242410,15.68467588,203.83,203.75,4.39486097]
[1757252242614,15.68467588,203.83,203.76,4.39486097]
[1757252242906,15.68467588,203.83,203.77,4.39486097]
[1757252243111,15.68467588,203.83,203.78,4.39486097]
[1757252243312,15.68467588,203.83,203.71,4.4173]
[1757252243516,15.68467588,203.83,203.72,8.26240092]
[1757252243715,15.68467588,203.83,203.73,8.26240092]
[1757252244014,15.68467588,203.83,203.74,8.26240092]
[1757252244215,15.68467588,203.83,203.75,4.39610333]
[1757252244516,15.68467588,203.83,203.76,4.39610333]
[1757252244706,15.68467588,203.83,203.77,4.39610333]
[1757252244904,15.68467588,203.83,203.78,4.39610333]
[1757252245109,15.68467588,203.83,203.79,4.39610333]
[1757252245306,15.68467588,203.83,203.71,4.4173]
[1757252245504,15.68467588,203.83,203.72,8.2644262]
[1757252245709,15.68467588,203.83,203.73,8.2644262]
[1757252245905,15.68467588,203.83,203.74,8.2644262]
[1757252246107,15.68467588,203.83,203.75,4.3971724]
[1757252246308,15.68467588,203.83,203.76,4.3971724]
[1757252246517,15.68467588,203.83,203.77,4.3971724]
[1757252246713,15.68467588,203.83,203.78,4.3971724]
[1757252246919,15.68467588,203.83,203.79,4.3971724]
[1757252247118,15.68467588,203.83,203.71,4.4173]
[1757252247319,15.68467588,203.83,203.72,8.26442007]
[1757252247515,15.68467588,203.83,203.73,8.26442007]
[1757252247715,15.68467588,203.83,203.74,8.26442007]
[1757252247915,15.68467588,203.83,203.75,4.39716456]
[1757252248115,15.68467588,203.83,203.76,4.39716456]
[1757252248317,15.68467588,203.83,203.77,4.39716456]
[1757252248517,15.68467588,203.83,203.78,4.39716456]
[1757252248717,15.68467588,203.83,203.79,4.39716456]
[1757252248918,15.68467588,203.83,203.71,4.4173]
[1757252249120,15.68467588,203.83,203.72,8.26439445]
[1757252249320,15.68467588,203.83,203.73,8.26439445]
[1757252249617,15.68467588,203.83,203.74,8.26439445]
[1757252249824,8.17,203.78,203.75,4.3971554]
[1757252250020,8.17,203.76,203.69,25.8777]
[1757252250620,8.17,203.76,203.69,4.4177]
[1757252251025,13.68397988,203.76,203.67,4.4181]
[1757252251623,8.17,203.74,203.67,4.4181]
[1757252251827,8.17,203.74,203.65,96.1386]
[1757252252026,8.17,203.73,203.65,96.1386]
[1757252254831,5.51397988,203.78,203.66,0.02]
[1757252255936,5.51397988,203.78,203.69,4.4177]
[1757252256240,5.51397988,203.78,203.7,0.02]
[1757252257734,7.97,203.77,203.7,0.02]
[1757252264144,13.48397988,203.77,203.7,0.02]
[1757252265640,5.51397988,203.75,203.66,0.02]
[1757252265943,7.97,203.74,203.66,0.02]
[1757252267845,7.97,203.74,203.67,0.02]
[1757252276050,7.97,203.74,203.67,4.4382]
[1757252276853,7.97,203.74,203.68,4.418]
[1757252281151,7.97,203.74,203.67,0.02]
[1757252282156,7.97,203.74,203.67,4.4382]
[1757252285358,7.97,203.74,203.67,0.02]
[1757252290160,7.97,203.74,203.67,4.4381]
[1757252294464,7.88,203.75,203.69,0.02]
[1757252295356,7.88,203.75,203.7,4.53059042]
[1757252295560,7.88,203.75,203.71,4.53059042]
[1757252295763,7.88,203.75,203.72,4.53059042]
[1757252296068,7.88,203.75,203.73,4.53059042]
[1757252296368,7.88,203.75,203.74,4.53059042]
[1757252308273,13.39397988,203.75,203.74,4.53059042]
[1757252326487,5.51397988,203.75,203.71,0.03]
[1757252326690,7.62,203.74,203.71,0.03]
[1757252327087,5.51397988,203.75,203.71,0.03]
[1757252327289,7.62,203.74,203.71,0.03]
[1757252327489,5.51397988,203.75,203.71,0.03]
[1757252327684,7.62,203.74,203.71,0.03]
[1757252328084,5.51397988,203.75,203.71,0.03]
[1757252328690,7.62,203.74,203.71,0.03]
[1757252328895,5.51397988,203.75,203.71,0.03]
[1757252329692,7.62,203.74,203.71,0.03]
[1757252329894,5.51397988,203.75,203.71,0.03]
[1757252330196,7.62,203.74,203.71,0.03]
[1757252331390,5.51397988,203.75,203.71,0.03]
[1757252331589,7.62,203.74,203.71,0.03]
[1757252331800,5.51397988,203.75,203.71,0.03]
[1757252331989,7.62,203.74,203.66,4.4183]
[1757252332304,7.62,203.74,203.67,0.03]
[1757252333096,13.13397988,203.74,203.67,0.03]
[1757252333401,5.51397988,203.73,203.64,116.00063339]
[1757252334502,7.62,203.72,203.64,116.00063339]
[1757252334692,5.51397988,203.73,203.64,116.00063339]
[1757252335603,5.51397988,203.73,203.64,111.58183339]
[1757252335802,7.62,203.72,203.64,111.58183339]
[1757252336303,5.51397988,203.73,203.64,111.58183339]
[1757252336904,7.62,203.72,203.64,111.58183339]
[1757252337102,5.51397988,203.7,203.64,0.03]
[1757252337305,7.62,203.69,203.61,0.03]
[1757252338104,7.62,203.69,203.63,0.03]
[1757252339607,7.62,203.69,203.63,4.419]
[1757252339799,7.62,203.69,203.6,119.28]
[1757252340004,7.62,203.69,203.61,0.03]
[1757252340901,5.51397988,203.73,203.64,4.4188]
[1757252341098,0.03516238,203.67,203.64,4.4188]
[1757252341400,0.03516238,203.67,203.65,0.03]
[1757252341806,0.03516238,203.67,203.64,4.4188]
[1757252341997,0.03516238,203.67,203.65,0.03]
[1757252343605,0.03516238,203.67,203.64,4.4188]
[1757252343805,0.03516238,203.67,203.65,0.03]
[1757252344309,0.03516238,203.67,203.64,4.4188]
[1757252344801,0.03516238,203.67,203.65,0.03]
[1757252345001,0.03516238,203.67,203.64,4.4188]
[1757252345505,0.03516238,203.67,203.65,0.02]
[1757252345904,0.03516238,203.67,203.64,4.4188]
[1757252346107,0.03516238,203.67,203.65,0.02]